fUSD/lending_fUSD_20250606
["ID","MTS","AMOUNT","RATE_DAILY","PERIOD"]
[364784800,1749241843897,-493.82174448,0.00027397,5]
[364784801,1749241843907,-480.0,0.00027397,5]
[364784802,1749241843916,-480.0,0.00027397,5]
[364784803,1749241843926,-480.0,0.00027397,5]
[364784804,1749241843936,-481.3859118,0.00027397,5]
[364784805,1749241843946,-1778.5,0.00027397,5]
[364784806,1749241843957,-480.0,0.00027397,5]
[364784807,1749241843968,-480.0,0.00027397,5]
[364784808,1749241843979,-480.0,0.00027397,5]
[364784809,1749241843989,-480.0,0.00027397,2]
[364784810,1749241843999,-2094.52,0.00027397,5]
[364784811,1749241844008,-480.0,0.00027397,5]
[364784812,1749241844018,-404.32452553,0.00027397,5]
[364784813,1749241844027,-480.0,0.00027397,5]
[364784814,1749241844036,-2998.55,0.00027397,5]
[364784815,1749241844046,-480.0,0.00027397,5]
[364784816,1749241844055,-585.0452618,0.00027397,5]
[364784817,1749241844065,-837.35,0.00027397,5]
[364784818,1749241844075,-500.0,0.00027397,5]
[364784819,1749241844084,-500.0,0.00027397,5]
[364784820,1749241844096,-494.17906345,0.00027397,5]
[364784821,1749241844106,-480.0,0.00027397,5]
[364784822,1749241844115,-1324.98,0.00027397,5]
[364784823,1749241844124,-822.69,0.00027397,5]
[364784824,1749241844134,-4354.28,0.00027397,5]
[364784825,1749241844143,-480.0,0.00027397,5]
[364784826,1749241844154,-10833.54,0.00027397,5]
[364784827,1749241844163,-1172.56,0.00027397,5]
[364784828,1749241844172,-480.0,0.00027397,5]
[364784829,1749241844183,-480.0,0.00027397,5]
[364784830,1749241844193,-2910.79,0.00027397,5]
[364784831,1749241844203,-480.0,0.00027397,5]
[364784832,1749241844214,-480.0,0.00027397,5]
[364784833,1749241844223,-480.0,0.00027397,5]
[364784834,1749241844234,-1425.98,0.00027397,5]
[364784835,1749241844243,-482.74502455,0.00027397,5]
[364784836,1749241844252,-495.38243071,0.00027397,5]
[364784837,1749241844262,-1161.29,0.00027397,5]
[364784838,1749241844272,-701.08,0.00027397,5]
[364784839,1749241844283,-480.0,0.00027397,5]
[364784840,1749241844293,-725.11,0.00027397,5]
[364784841,1749241844303,-480.0,0.00027397,5]
[364784842,1749241844312,-622.3,0.00027397,5]
[364784843,1749241844321,-891.78,0.00027397,5]
[364784844,1749241844331,-480.0,0.00027397,5]
[364784845,1749241844340,-2822.75,0.00027397,5]
[364784846,1749241844349,-1363.03,0.00027397,5]
[364784847,1749241844359,-480.0,0.00027397,5]
[364784848,1749241844368,-3135.14,0.00027397,5]
[364784849,1749241844377,-1180.93,0.00027397,5]
[364784851,1749241844386,-437.289691,0.00027397,2]
[364784852,1749241844395,-931.09,0.00027397,5]
[364784853,1749241844404,-480.0,0.00027397,5]
[364784854,1749241844414,-480.0,0.00027397,5]
[364784855,1749241844423,-480.0,0.00027397,5]
[364784856,1749241844432,-480.0,0.00027397,5]
[364784857,1749241844442,-500.0,0.00027397,2]
[364784858,1749241844452,-500.0,0.00027397,2]
[364784859,1749241844461,-500.0,0.00027397,2]
[364784860,1749241844471,-500.0,0.00027397,2]
[364784861,1749241844480,-1414.51,0.00027397,5]
[364784862,1749241844489,-500.0,0.00027397,2]
[364784863,1749241844499,-500.0,0.00027397,2]
[364784864,1749241844509,-500.0,0.00027397,2]
[364784865,1749241844519,-500.0,0.00027397,2]
[364784866,1749241844529,-500.0,0.00027397,2]
[364784867,1749241844539,-500.0,0.00027397,2]
[364784868,1749241844549,-500.0,0.00027397,2]
[364784869,1749241844558,-1155.88,0.00027397,5]
[364784870,1749241844568,-500.0,0.00027397,2]
[364784871,1749241844577,-500.0,0.00027397,2]
[364784872,1749241844587,-500.0,0.00027397,2]
[364784873,1749241844596,-500.0,0.00027397,2]
[364784874,1749241844605,-500.0,0.00027397,2]
[364784875,1749241844615,-500.0,0.00027397,2]
[364784876,1749241844624,-500.0,0.00027397,2]
[364784877,1749241844633,-500.0,0.00027397,2]
[364784878,1749241844642,-500.0,0.00027397,2]
[364784879,1749241844652,-500.0,0.00027397,2]
[364784880,1749241844661,-500.0,0.00027397,2]
[364784881,1749241844670,-500.0,0.00027397,2]
[364784882,1749241844680,-480.0,0.00027397,5]
[364784883,1749241844689,-246.03981521,0.00027397,2]
[364784884,1749241844698,-500.0,0.00027397,2]
[364784885,1749241844708,-4001.96,0.00027397,5]
[364784886,1749241844716,-552.73,0.00027397,5]
[364784887,1749241844727,-424.42628348,0.00027397,5]
[364784888,1749241844736,-480.0,0.00027397,5]
[364784889,1749241844745,-632.88,0.00027397,5]
[364784890,1749241844754,-480.0,0.00027397,5]
[364784891,1749241844765,-1526.89,0.00027397,5]
[364784892,1749241844777,-480.0,0.00027397,5]
[364784893,1749241844786,-480.0,0.00027397,5]
[364784894,1749241844796,-1010.46,0.00027397,5]
[364784895,1749241844805,-480.0,0.00027397,5]
[364784896,1749241844816,-1132.61,0.00027397,5]
[364784897,1749241844827,-480.0,0.00027397,5]
[364784898,1749241844836,-593.39,0.00027397,5]
[364784900,1749241844846,-480.0,0.00027397,5]
[364784901,1749241844855,-480.0,0.00027397,5]
[364784902,1749241844864,-480.0,0.00027397,5]
[364784903,1749241844875,-1110.02,0.00027397,5]
[364784904,1749241844885,-533.37,0.00027397,5]
[364784905,1749241844896,-500.0,0.00027397,2]
[364784906,1749241844905,-500.0,0.00027397,2]
[364784907,1749241844915,-500.0,0.00027397,2]
[364784908,1749241844924,-500.0,0.00027397,2]
[364784909,1749241844933,-500.0,0.00027397,2]
[364784910,1749241844942,-200.0,0.00027397,2]
[364784911,1749241844953,-486.75731355,0.00027397,5]
[364784912,1749241844964,-4560.52,0.00027397,5]
[364784913,1749241844974,-480.0,0.00027397,5]
[364784914,1749241844984,-480.0,0.00027397,5]
[364784915,1749241844994,-1741.06,0.00027397,5]
[364784916,1749241845005,-480.0,0.00027397,5]
[364784917,1749241845014,-480.0,0.00027397,5]
[364784918,1749241845023,-480.0,0.00027397,5]
[364784919,1749241845032,-480.0,0.00027397,5]
[364784920,1749241845042,-1207.6,0.00027397,5]
[364784921,1749241845051,-480.0,0.00027397,5]
[364784922,1749241845060,-480.0,0.00027397,5]
[364784923,1749241845070,-526.84,0.00027397,5]
[364784924,1749241845079,-625.4,0.00027397,5]
[364784925,1749241845088,-776.39,0.00027397,5]
[364784926,1749241845097,-480.0,0.00027397,5]
[364784927,1749241845107,-1627.41,0.00027397,5]
[364784928,1749241845117,-959.5,0.00027397,5]
[364784929,1749241845127,-480.0,0.00027397,5]
[364784930,1749241845136,-480.0,0.00027397,5]
[364784931,1749241845146,-480.0,0.00027397,5]
[364784932,1749241845156,-3166.58,0.00027397,5]
[364784933,1749241845166,-480.0,0.00027397,5]
[364784934,1749241845175,-480.0,0.00027397,5]
[364784935,1749241845184,-480.0,0.00027397,5]
[364784936,1749241845194,-480.0,0.00027397,5]
[364784937,1749241845204,-1176.26,0.00027397,5]
[364784938,1749241845214,-480.0,0.00027397,5]
[364784939,1749241845224,-480.0,0.00027397,5]
[364784940,1749241845234,-1451.66,0.00027397,5]
[364784941,1749241845244,-480.0,0.00027397,5]
[364784942,1749241845254,-480.0,0.00027397,5]
[364784943,1749241845264,-480.0,0.00027397,5]
[364784944,1749241845274,-500.0,0.00027397,5]
[364784945,1749241845284,-480.0,0.00027397,5]
[364784946,1749241845294,-480.0,0.00027397,5]
[364784947,1749241845303,-480.0,0.00027397,5]
[364784948,1749241845313,-432.69760027,0.00027397,5]
[364784949,1749241845323,-480.0,0.00027397,5]
[364784950,1749241845332,-480.0,0.00027397,5]
[364784951,1749241845342,-480.0,0.00027397,5]
[364784952,1749241845351,-1361.24,0.00027397,5]
[364784953,1749241845361,-1361.24,0.00027397,5]
[364784954,1749241845371,-1361.24,0.00027397,5]
[364784955,1749241845380,-1361.24,0.00027397,5]
[364784956,1749241845390,-2618.96,0.00027397,5]
[364784957,1749241845399,-150.0,0.00027397,2]
[364784958,1749241845409,-7319.26,0.00027397,5]
[364784959,1749241845419,-15228.1,0.00027397,5]
[364784960,1749241845429,-150.0,0.00027397,2]
[364784961,1749241845439,-480.0,0.00027397,5]
[364784962,1749241845449,-480.0,0.00027397,5]
[364784963,1749241845459,-3041.7,0.00027397,5]
[364784964,1749241845468,-480.0,0.00027397,5]
[364784965,1749241845478,-480.0,0.00027397,5]
[364784966,1749241845487,-480.0,0.00027397,5]
[364784967,1749241845496,-480.0,0.00027397,5]
[364784968,1749241845506,-649.3,0.00027397,5]
[364784969,1749241845515,-151.0,0.00027397,7]
[364784970,1749241845525,-151.0,0.00027397,7]
[364784971,1749241845534,-480.0,0.00027397,5]
[364784972,1749241845543,-585.28,0.00027397,5]
[364784974,1749241845553,-480.0,0.00027397,5]
[364784976,1749241845563,-11478.06,0.00027397,5]
[364784977,1749241845573,-214.89071463,0.00027397,5]
[364784978,1749241845582,-480.0,0.00027397,5]
[364784979,1749241845591,-1727.03,0.00027397,5]
[364784980,1749241845601,-1130.77,0.00027397,5]
[364784981,1749241845611,-470.98776095,0.00027397,5]
[364784982,1749241845620,-7297.24,0.00027397,5]
[364784984,1749241845629,-480.0,0.00027397,5]
[364784985,1749241845639,-480.0,0.00027397,5]
[364784986,1749241845648,-1673.57,0.00027397,5]
[364784987,1749241845658,-480.0,0.00027397,5]
[364784988,1749241845669,-480.0,0.00027397,5]
[364784989,1749241845679,-1724.44,0.00027397,5]
[364784990,1749241845689,-155.22438,0.00027397,5]
[364784991,1749241845701,-480.0,0.00027397,5]
[364784992,1749241845711,-480.0,0.00027397,5]
[364784993,1749241845720,-480.0,0.00027397,5]
[364784994,1749241845731,-605.57,0.00027397,5]
[364784995,1749241845740,-494.53481212,0.00027397,5]
[364784996,1749241845751,-2022.54,0.00027397,5]
[364784997,1749241845760,-481.92158103,0.00027397,5]
[364784998,1749241845774,-1496.76,0.00027397,5]
[364784999,1749241845783,-480.0,0.00027397,5]
[364785000,1749241845793,-616.43,0.00027397,5]
[364785001,1749241845803,-484.6400219,0.00027397,5]
[364785002,1749241845813,-480.0,0.00027397,5]
[364785003,1749241845823,-1644.54,0.00027397,5]
[364785004,1749241845832,-151.0,0.00027397,7]
[364785005,1749241845842,-151.0,0.00027397,7]
[364785006,1749241845851,-480.0,0.00027397,5]
[364785007,1749241845861,-500.0,0.00027397,5]
[364785008,1749241845871,-500.0,0.00027397,5]
[364785009,1749241845884,-3349.68,0.00027397,5]
[364785010,1749241845895,-427.09394536,0.00027397,5]
[364785011,1749241845907,-398.85324188,0.00027397,5]
[364785012,1749241845917,-584.83,0.00027397,5]
[364785013,1749241845927,-624.52,0.00027397,5]
[364785014,1749241845936,-480.0,0.00027397,5]
[364785015,1749241845946,-1651.89,0.00027397,5]
[364785016,1749241845956,-480.0,0.00027397,5]
[364785017,1749241845968,-480.0,0.00027397,5]
[364785018,1749241845978,-528.03379447,0.00027397,5]
[364785019,1749241845988,-869.35,0.00027397,5]
[364785020,1749241845997,-360.792683,0.00027397,5]
[364785021,1749241846006,-718.31,0.00027397,5]
[364785022,1749241846016,-567.05,0.00027397,5]
[364785023,1749241846025,-480.0,0.00027397,5]
[364785024,1749241846034,-593.22,0.00027397,5]
[364785025,1749241846044,-724.33,0.00027397,5]
[364785026,1749241846055,-1529.35,0.00027397,5]
[364785027,1749241846065,-586.21,0.00027397,5]
[364785028,1749241846074,-151.0,0.00027397,7]
[364785029,1749241846084,-151.0,0.00027397,7]
[364785030,1749241846093,-501.22796512,0.00027397,5]
[364785031,1749241846103,-480.0,0.00027397,5]
[364785032,1749241846112,-480.0,0.00027397,5]
[364785033,1749241846122,-151.0,0.00027397,7]
[364785034,1749241846131,-151.0,0.00027397,7]
[364785035,1749241846141,-480.0,0.00027397,5]
[364785036,1749241846152,-480.0,0.00027397,5]
[364785037,1749241846163,-480.0,0.00027397,5]
[364785038,1749241846173,-480.0,0.00027397,5]
[364785039,1749241846183,-618.5,0.00027397,5]
[364785040,1749241846193,-338.86547354,0.00027397,5]
[364785041,1749241846204,-645.12,0.00027397,5]
[364785042,1749241846214,-480.0,0.00027397,5]
[364785044,1749241846224,-151.0,0.00027397,7]
[364785046,1749241846234,-1029.88,0.00027397,5]
[364785047,1749241846244,-151.0,0.00027397,7]
[364785048,1749241846255,-856.04,0.00027397,5]
[364785049,1749241846265,-491.46711055,0.00027397,5]
[364785051,1749241846274,-1316.83,0.00027397,5]
[364785053,1749241846288,-483.11270371,0.00027397,5]
[364785054,1749241846298,-1219.25,0.00027397,5]
[364785055,1749241846307,-937.26,0.00027397,5]
[364785056,1749241846318,-480.0,0.00027397,2]
[364785057,1749241846328,-480.0,0.00027397,5]
[364785059,1749241846337,-2376.4,0.00027397,5]
[364785060,1749241846347,-426.45613207,0.00027397,5]
[364785061,1749241846357,-481.35,0.00027397,5]
[364785062,1749241846369,-246.05266771,0.00027397,5]
[364785063,1749241846379,-480.0,0.00027397,5]
[364785064,1749241846388,-1691.35,0.00027397,5]
[364785065,1749241846398,-480.0,0.00027397,5]
[364785066,1749241846408,-480.0,0.00027397,5]
[364785067,1749241846420,-480.0,0.00027397,5]
[364785068,1749241846431,-874.97,0.00027397,5]
[364785069,1749241846443,-480.0,0.00027397,5]
[364785070,1749241846453,-480.0,0.00027397,5]
[364785071,1749241846463,-480.0,0.00027397,5]
[364785072,1749241846473,-480.0,0.00027397,5]
[364785073,1749241846482,-951.49,0.00027397,5]
[364785074,1749241846491,-636.39,0.00027397,2]
[364785075,1749241846501,-158.01,0.00027397,2]
[364785076,1749241846511,-933.1520387,0.00027417,17]
[364785077,1749241846521,-150.0,0.00027424,2]
[364785078,1749241846531,-151.0,0.00027442,7]
[364785079,1749241846544,-151.0,0.00027442,7]
[364785080,1749241846554,-184.953576,0.00027442,7]
[364785081,1749241846565,-184.953576,0.00027442,7]
[364785082,1749241846575,-157.246815,0.00027442,7]
[364785083,1749241846586,-151.0,0.00027442,7]
[364785084,1749241846596,-150.0,0.00027452,2]
[364785085,1749241846605,-267.17476536,0.00027479,2]
[364785086,1749241846615,-183.681797,0.00027489,7]
[364785087,1749241846624,-183.681797,0.00027489,7]
[364785088,1749241846634,-2700.0,0.000275,10]
[364785089,1749241846644,-20638.03,0.000275,2]
[364785090,1749241846653,-350.0,0.00027533,2]
[364785091,1749241846663,-1361.24,0.00027537,5]
[364785092,1749241846672,-1361.24,0.00027543,5]
[364785093,1749241846682,-353.8793645,0.00027544,2]
[364785094,1749241846692,-151.0,0.00027544,7]
[364785095,1749241846702,-721.055128,0.00027544,7]
[364785096,1749241846712,-721.055128,0.00027544,7]
[364785097,1749241846722,-2000.0,0.0002755,2]
[364785098,1749241846731,-151.0,0.00027551,7]
[364785099,1749241846741,-500.0,0.00027551,5]
[364785100,1749241846750,-151.0,0.00027551,7]
[364785101,1749241846760,-151.0,0.00027551,7]
[364785102,1749241846774,-1361.24,0.00027551,5]
[364785103,1749241846785,-1361.24,0.00027551,5]
[364785104,1749241846795,-1361.24,0.00027551,5]
[364785105,1749241846804,-1361.24,0.00027551,5]
[364785106,1749241846815,-1361.24,0.00027551,5]
[364785107,1749241846825,-1361.24,0.00027551,5]
[364785108,1749241846836,-1361.24,0.00027551,5]
[364785109,1749241846847,-1361.24,0.00027551,5]
[364785110,1749241846858,-1361.24,0.00027551,5]
[364785111,1749241846868,-1361.24,0.00027551,5]
[364785112,1749241846878,-1361.24,0.00027551,5]
[364785113,1749241846888,-1361.24,0.00027551,5]
[364785114,1749241846899,-1361.24,0.00027551,5]
[364785115,1749241846909,-1361.24,0.00027551,5]
[364785116,1749241846919,-1361.24,0.00027551,5]
[364785117,1749241846929,-1361.24,0.00027551,5]
[364785118,1749241846939,-1361.24,0.00027551,5]
[364785119,1749241846949,-1361.26,0.00027551,5]
[364785120,1749241846959,-151.0,0.00027551,7]
[364785121,1749241846968,-857.354062,0.00027551,7]
[364785122,1749241846978,-857.354062,0.00027551,7]
[364785123,1749241846988,-4800.822384,0.00027551,7]
[364785124,1749241846998,-500.0,0.00027551,5]
[364785125,1749241847007,-4800.822384,0.00027551,7]
[364785126,1749241847018,-153.223815,0.00027552,7]
[364785127,1749241847030,-151.0,0.00027552,2]
[364785128,1749241847040,-151.0,0.00027552,2]
[364785129,1749241847049,-151.0,0.00027552,2]
[364785130,1749241847059,-151.0,0.00027552,2]
[364785131,1749241847069,-151.0,0.00027552,2]
[364785132,1749241847078,-151.0,0.00027552,2]
[364785133,1749241847087,-151.0,0.00027552,2]
[364785134,1749241847097,-151.0,0.00027552,2]
[364785135,1749241847106,-151.0,0.00027552,2]
[364785136,1749241847116,-151.0,0.00027552,2]
[364785137,1749241847125,-151.0,0.00027552,2]
[364785138,1749241847135,-151.0,0.00027552,2]
[364785139,1749241847144,-151.0,0.00027552,2]
[364785140,1749241847154,-151.0,0.00027552,7]
[364785141,1749241847164,-4800.822384,0.00027552,7]
[364785142,1749241847174,-4800.822384,0.00027552,7]
[364785143,1749241847184,-721.055128,0.00027552,7]
[364785144,1749241847194,-721.055128,0.00027552,7]
[364785145,1749241847203,-122348.8479883,0.00027554,2]
[364785146,1749241847213,-12132.6576305,0.00027554,2]
[364785147,1749241847222,-4078.4491507,0.00027554,2]
[364785148,1749241847232,-300.0,0.0002756,10]
[364785149,1749241847242,-500.0,0.0002756,2]
[364785150,1749241847252,-263.34,0.0002756,5]
[364785151,1749241847261,-150.61,0.0002756,5]
[364785152,1749241847271,-151.0,0.00027561,7]
[364785153,1749241847281,-151.0,0.00027561,7]
[364785154,1749241847292,-151.0,0.00027561,7]
[364785155,1749241847302,-151.0,0.00027561,7]
[364785156,1749241847312,-151.0,0.00027561,7]
[364785157,1749241847322,-151.0,0.00027561,7]
[364785158,1749241847332,-151.0,0.00027561,7]
[364785159,1749241847342,-151.0,0.00027561,7]
[364785160,1749241847352,-151.0,0.00027561,7]
[364785161,1749241847361,-293.37442,0.00027561,7]
[364785162,1749241847372,-183.681797,0.00027561,7]
[364785163,1749241847382,-183.681797,0.00027561,7]
[364785164,1749241847391,-151.0,0.00027561,7]
[364785165,1749241847402,-151.0,0.00027561,7]
[364785166,1749241847412,-184.953576,0.00027561,7]
[364785167,1749241847684,-184.953576,0.00027561,7]
[364785168,1749241847703,-1037.945732,0.00027561,7]
[364785169,1749241847712,-1037.945732,0.00027561,7]
[364785170,1749241847722,-151.0,0.00027561,7]
[364785171,1749241847732,-1463.594543,0.00027561,5]
[364785172,1749241847741,-1652.978713,0.00027561,5]
[364785173,1749241847751,-151.0,0.00027561,7]
[364785174,1749241847761,-480.0,0.00027561,5]
[364785175,1749241847773,-480.0,0.00027561,5]
[364785176,1749241847783,-480.0,0.00027561,5]
[364785177,1749241847793,-480.0,0.00027561,5]
[364785178,1749241847803,-480.0,0.00027561,5]
[364785179,1749241847813,-262.16022886,0.00027561,5]
[364785180,1749241847823,-480.0,0.00027561,5]
[364785181,1749241847833,-480.0,0.00027561,5]
[364785182,1749241847844,-480.0,0.00027561,5]
[364785183,1749241847854,-480.0,0.00027561,5]
[364785184,1749241847864,-480.0,0.00027561,5]
[364785185,1749241847874,-480.0,0.00027561,5]
[364785186,1749241847883,-480.0,0.00027561,5]
[364785187,1749241847894,-480.0,0.00027561,5]
[364785188,1749241847904,-480.0,0.00027561,5]
[364785189,1749241847914,-451.40609965,0.00027561,5]
[364785190,1749241847924,-480.0,0.00027561,5]
[364785191,1749241847934,-480.0,0.00027561,5]
[364785192,1749241847943,-480.0,0.00027561,5]
[364785193,1749241847953,-650.7,0.00027561,2]
[364785194,1749241847963,-480.0,0.00027561,5]
[364785195,1749241847972,-480.0,0.00027561,5]
[364785196,1749241847982,-480.0,0.00027561,5]
[364785197,1749241847992,-480.0,0.00027561,5]
[364785198,1749241848001,-480.0,0.00027561,5]
[364785199,1749241848012,-480.0,0.00027561,5]
[364785200,1749241848022,-1150.67,0.00027561,5]
[364785201,1749241848032,-849.58,0.00027561,5]
[364785202,1749241848042,-480.0,0.00027561,5]
[364785203,1749241848052,-480.0,0.00027561,5]
[364785204,1749241848062,-600.0,0.00027561,30]
[364785205,1749241848072,-1762.69,0.00027561,5]
[364785206,1749241848083,-480.0,0.00027561,5]
[364785207,1749241848092,-480.0,0.00027561,5]
[364785208,1749241848102,-521.79,0.00027561,5]
[364785209,1749241848112,-480.0,0.00027561,5]
[364785210,1749241848121,-317.34252888,0.00027561,5]
[364785211,1749241848132,-480.0,0.00027561,5]
[364785212,1749241848142,-480.0,0.00027561,5]
[364785213,1749241848151,-480.0,0.00027561,5]
[364785214,1749241848161,-230.27736612,0.00027561,5]
[364785215,1749241848171,-480.0,0.00027561,5]
[364785216,1749241848180,-480.0,0.00027561,5]
[364785217,1749241848190,-480.0,0.00027561,5]
[364785218,1749241848200,-480.0,0.00027561,5]
[364785219,1749241848210,-1155.6,0.00027561,5]
[364785220,1749241848220,-480.0,0.00027561,5]
[364785221,1749241848230,-1160.86,0.00027561,5]
[364785222,1749241848240,-480.0,0.00027561,5]
[364785223,1749241848250,-519.58,0.00027561,5]
[364785224,1749241848259,-552.94,0.00027561,5]
[364785225,1749241848270,-950.71,0.00027561,5]
[364785226,1749241848280,-480.0,0.00027561,5]
[364785227,1749241848290,-480.0,0.00027561,5]
[364785228,1749241848300,-675.25,0.00027561,5]
[364785229,1749241848310,-480.0,0.00027561,5]
[364785230,1749241848320,-885.57,0.00027561,5]
[364785231,1749241848330,-480.0,0.00027561,5]
[364785232,1749241848340,-480.0,0.00027561,5]
[364785233,1749241848349,-666.72,0.00027561,5]
[364785234,1749241848359,-480.0,0.00027561,5]
[364785235,1749241848369,-480.0,0.00027561,5]
[364785236,1749241848378,-1073.7,0.00027561,5]
[364785237,1749241848388,-628.59972259,0.00027561,5]
[364785238,1749241848398,-519.6,0.00027561,5]
[364785239,1749241848408,-511.45,0.00027561,5]
[364785240,1749241848418,-480.0,0.00027561,5]
[364785241,1749241848428,-499.44,0.00027561,5]
[364785242,1749241848437,-365.144635,0.00027561,5]
[364785243,1749241848447,-803.55,0.00027561,5]
[364785244,1749241848458,-480.0,0.00027561,5]
[364785245,1749241848467,-480.0,0.00027561,5]
[364785246,1749241848478,-480.0,0.00027561,5]
[364785247,1749241848489,-579.61,0.00027561,5]
[364785248,1749241848498,-480.0,0.00027561,5]
[364785249,1749241848507,-480.0,0.00027561,5]
[364785250,1749241848516,-182.78,0.00027561,5]
[364785251,1749241848526,-607.44,0.00027561,5]
[364785252,1749241848536,-158.27,0.00027561,5]
[364785253,1749241848547,-883.54,0.00027561,5]
[364785254,1749241848556,-838.95,0.00027561,5]
[364785255,1749241848566,-480.0,0.00027561,5]
[364785256,1749241848576,-480.0,0.00027561,5]
[364785257,1749241848586,-480.0,0.00027561,5]
[364785258,1749241848596,-480.0,0.00027561,5]
[364785259,1749241848606,-732.08,0.00027561,5]
[364785260,1749241848616,-646.34,0.00027561,5]
[364785261,1749241848626,-480.0,0.00027561,5]
[364785262,1749241848636,-574.86,0.00027561,5]
[364785263,1749241848646,-401.80771988,0.00027561,5]
[364785264,1749241848655,-480.0,0.00027561,5]
[364785265,1749241848665,-480.0,0.00027561,5]
[364785266,1749241848674,-480.0,0.00027561,5]
[364785267,1749241848684,-480.0,0.00027561,5]
[364785268,1749241848693,-480.0,0.00027561,5]
[364785269,1749241848703,-518.75,0.00027561,5]
[364785270,1749241848712,-951.19,0.00027561,5]
[364785271,1749241848722,-779.94,0.00027561,5]
[364785272,1749241848731,-150.0,0.00027561,5]
[364785273,1749241848740,-480.0,0.00027561,5]
[364785274,1749241848750,-689.83,0.00027561,5]
[364785275,1749241848760,-1012.85,0.00027561,5]
[364785276,1749241848772,-150.0,0.00027561,5]
[364785277,1749241848786,-482.38,0.00027561,5]
[364785278,1749241848796,-500.0,0.00027561,5]
[364785279,1749241848805,-480.0,0.00027561,5]
[364785280,1749241848815,-150.0,0.00027561,5]
[364785281,1749241848825,-480.0,0.00027561,5]
[364785282,1749241848835,-713.99,0.00027561,5]
[364785283,1749241848844,-480.0,0.00027561,5]
[364785284,1749241848855,-549.54,0.00027561,5]
[364785285,1749241848865,-480.0,0.00027561,5]
[364785286,1749241848875,-150.0,0.00027561,5]
[364785287,1749241848885,-480.0,0.00027561,5]
[364785288,1749241848894,-480.0,0.00027561,5]
[364785289,1749241848904,-891.22,0.00027561,5]
[364785290,1749241848913,-1010.55,0.00027561,5]
[364785291,1749241848923,-480.0,0.00027561,5]
[364785292,1749241848933,-580.5,0.00027561,5]
[364785293,1749241848942,-480.0,0.00027561,5]
[364785294,1749241848952,-480.0,0.00027561,5]
[364785295,1749241848962,-480.0,0.00027561,5]
[364785296,1749241848971,-480.0,0.00027561,5]
[364785297,1749241848981,-480.0,0.00027561,5]
[364785298,1749241848991,-787.11,0.00027561,5]
[364785299,1749241849000,-480.0,0.00027561,5]
[364785300,1749241849010,-480.0,0.00027561,5]
[364785301,1749241849019,-480.0,0.00027561,5]
[364785302,1749241849029,-801.53,0.00027561,5]
[364785303,1749241849038,-480.0,0.00027561,5]
[364785304,1749241849048,-547.92,0.00027561,5]
[364785305,1749241849057,-480.0,0.00027561,5]
[364785306,1749241849067,-788.62,0.00027561,5]
[364785307,1749241849076,-445.57152634,0.00027561,5]
[364785308,1749241849086,-480.0,0.00027561,5]
[364785309,1749241849095,-823.95,0.00027561,5]